bitfinex/quotes_ETHUSD_20251214
["timestamp","ask_amount","ask_price","bid_price","bid_amount"]
[1765722084663,3.22757641,3098.3,3098.2,0.6608]
[1765722085068,3.22757641,3098.3,3098.2,1.1506]
[1765722085271,3.22751489,3098.4,3098.2,1.1506]
[1765722085462,3.22751489,3098.4,3098.3,0.4898]
[1765722085644,3.22751489,3098.4,3098.3,0.9474]
[1765722086165,3.22828596,3098.6,3098.3,0.9474]
[1765722086166,0.58147529,3098.6,3098.3,0.9474]
[1765722086739,0.58147529,3098.6,3098.3,0.4576]
[1765722087365,1.07587529,3098.6,3098.3,0.4576]
[1765722087968,1.07587529,3098.6,3098.1,0.4996]
[1765722088370,6.45473616,3098.5,3098.1,0.4996]
[1765722089867,6.94913616,3098.5,3098.1,0.4996]
[1765722090260,6.94913616,3098.5,3098.0,0.6973]
[1765722090573,6.94913616,3098.5,3098.0,0.6993]
[1765722090765,0.4944,3098.4,3098.0,0.002]
[1765722090948,0.4944,3098.4,3098.0,0.512]
[1765722091148,10.75788136,3098.5,3098.0,0.512]
[1765722091343,0.4659,3098.1,3098.0,0.512]
[1765722091568,0.4659,3098.1,3098.0,0.002]
[1765722091773,0.9603,3098.1,3098.0,0.002]
[1765722092373,4.18808477,3098.1,3098.0,0.002]
[1765722092673,4.92966106,3098.1,3098.0,0.002]
[1765722093172,3.22778477,3098.1,3098.0,0.002]
[1765722093348,3.22778477,3098.1,3098.0,0.4722]
[1765722093548,6.45494448,3098.4,3098.0,0.4722]
[1765722093748,6.45494448,3098.4,3098.0,0.9718]
[1765722093954,3.22747224,3098.4,3098.3,0.4653613]
[1765722094469,0.58047529,3098.5,3098.3,0.4653613]
[1765722094674,1.65622222,3098.5,3098.3,0.4653613]
[1765722095179,1.07574693,3098.5,3098.3,0.4653613]
[1765722097089,3.22747224,3098.4,3098.1,0.1802]
[1765722097243,3.22747224,3098.4,3098.3,0.4996]
[1765722097449,3.22747224,3098.4,3098.3,0.9698]
[1765722098955,3.22839331,3098.5,3098.3,0.9698]
[1765722099158,3.8088686,3098.5,3098.4,0.4702]
[1765722100585,7.99656191,3098.5,3098.1,0.1802]
[1765722100786,0.0162,3098.4,3098.1,0.1802]
[1765722101084,0.0162,3098.4,3098.1,0.6798]
[1765722101085,3.22757641,3098.3,3098.1,0.6798]
[1765722101454,3.22757641,3098.3,3098.1,0.1802]
[1765722101767,6.45515282,3098.3,3098.0,0.002]
[1765722102085,6.45515282,3098.3,3098.1,0.51]
[1765722102583,6.45494448,3098.4,3098.1,0.51]
[1765722102769,7.6431123,3098.4,3098.1,0.51]
[1765722103771,7.6431123,3098.4,3098.0,0.002]
[1765722103957,7.6431123,3098.4,3098.1,0.51]
[1765722105459,0.4659,3098.2,3098.1,0.51]
[1765722105863,0.4659,3098.2,3098.0,0.002]
[1765722106058,3.22837214,3098.5,3098.1,1.1451]
[1765722106270,3.22837214,3098.5,3098.4,0.4702]
[1765722106476,0.001,3098.5,3098.4,0.4702]
[1765722106675,0.001,3098.5,3098.4,0.9698]
[1765722108174,0.001,3098.5,3098.4,4.19727224]
[1765722108378,0.001,3098.5,3098.4,4.70727224]
[1765722109991,0.001,3098.5,3098.4,1.4798]
[1765722111098,0.001,3098.5,3098.4,4.70727224]
[1765722112406,0.001,3098.5,3098.4,1.4798]
[1765722112896,0.001,3098.5,3098.4,0.9698]
[1765722113100,0.001,3098.5,3098.4,1.4798]
[1765722116294,0.001,3098.5,3098.4,0.9698]
[1765722116497,0.001,3098.5,3098.4,1.4798]
[1765722117379,0.001,3098.5,3098.4,4.70727224]
[1765722118701,0.001,3098.5,3098.4,1.4798]
[1765722121014,0.001,3098.5,3098.4,0.9802]
[1765722121773,0.001,3098.5,3098.4,0.51]
[1765722122004,0.4665,3098.5,3098.4,0.51]
[1765722122728,1.60908195,3098.5,3098.3,0.002]
[1765722122937,0.0756,3098.4,3098.3,0.002]
[1765722123230,0.526,3098.4,3098.3,0.512]
[1765722124122,3.75347224,3098.4,3098.3,0.512]
[1765722124898,3.92057025,3098.5,3098.3,0.9837]
[1765722125098,3.2283883,3098.5,3098.4,0.4717]
[1765722125524,3.6938883,3098.5,3098.3,0.512]
[1765722125821,0.4655,3098.4,3098.3,0.512]
[1765722126037,3.69297224,3098.4,3098.3,0.512]
[1765722126334,4.14337224,3098.4,3098.3,0.512]
[1765722126805,3.69297224,3098.4,3098.3,0.512]
[1765722129633,3.22844834,3098.5,3098.3,0.9837]
[1765722129926,3.22844834,3098.5,3098.4,0.4717]
[1765722130233,3.87411169,3098.5,3098.4,0.4717]
[1765722131310,4.33961169,3098.5,3098.3,0.512]
[1765722132514,0.0756,3098.4,3098.3,0.512]
[1765722133337,3.30307224,3098.4,3098.3,0.512]
[1765722133717,3.87404732,3098.5,3098.3,0.9837]
[1765722133916,0.64666335,3098.5,3098.4,0.4717]
[1765722134320,0.001,3098.5,3098.4,0.4717]
[1765722135325,0.001,3098.5,3098.4,0.9494]
[1765722137241,0.001,3098.5,3098.4,4.17687224]
[1765722140331,0.001,3098.5,3098.4,0.9494]
[1765722141232,0.001,3098.5,3098.4,1.4594]
[1765722141468,0.001,3098.5,3098.4,4.68687224]
[1765722141845,0.001,3098.5,3098.4,0.9494]
[1765722142147,0.001,3098.5,3098.4,0.9817]
[1765722142448,0.001,3098.5,3098.4,1.4594]
[1765722143534,0.001,3098.5,3098.4,4.68687224]
[1765722143732,0.001,3098.5,3098.4,1.4594]
[1765722145852,0.001,3098.5,3098.4,0.9817]
[1765722146547,0.001,3098.5,3098.4,0.4717]
[1765722146751,0.4517,3098.5,3098.4,0.51]
[1765722147052,0.4517,3098.5,3098.3,0.002]
[1765722147356,0.4517,3098.5,3098.4,4.70747224]
[1765722147357,0.001,3098.5,3098.4,4.70747224]
[1765722151253,0.001,3098.5,3098.4,0.4804]
[1765722151558,0.001,3098.5,3098.4,1.48]
[1765722152039,0.001,3098.5,3098.4,1.479]
[1765722152435,0.001,3098.5,3098.4,0.9894]
[1765722153643,0.001,3098.5,3098.4,0.4804]
[1765722153849,0.001,3098.5,3098.4,0.9894]
[1765722154430,0.001,3098.5,3098.3,0.002]
[1765722154431,0.4517,3098.5,3098.3,0.002]
[1765722154630,0.4517,3098.5,3098.4,0.509]
[1765722155870,1.36946598,3098.5,3098.3,0.002]
[1765722156032,0.91876598,3098.5,3098.4,0.509]
[1765722156234,0.41896598,3098.5,3098.4,0.509]
[1765722156473,0.86966598,3098.5,3098.4,0.509]
[1765722156648,4.09703406,3098.5,3098.4,0.509]
[1765722156863,4.59683406,3098.5,3098.4,0.509]
[1765722158126,0.86966598,3098.5,3098.4,0.509]
[1765722158342,0.9515,3098.5,3098.4,0.509]
[1765722159255,4.17886808,3098.5,3098.4,0.509]
[1765722159461,0.9515,3098.5,3098.4,0.509]
[1765722160632,4.17886808,3098.5,3098.4,0.509]
[1765722161162,0.4517,3098.5,3098.4,0.509]
[1765722161542,3.67906808,3098.5,3098.4,0.509]
[1765722161743,4.17886808,3098.5,3098.4,0.509]
[1765722162335,0.9515,3098.5,3098.4,0.509]
[1765722163981,4.17886808,3098.5,3098.4,0.509]
[1765722164754,3.67906808,3098.5,3098.4,0.51]
[1765722165062,4.86960627,3098.5,3098.3,0.002]
[1765722165233,3.91910627,3098.5,3098.4,0.51]
[1765722165776,4.86960627,3098.5,3098.4,0.51]
[1765722168538,4.86960627,3098.5,3098.3,0.002]
[1765722168755,0.5458,3098.4,3098.3,0.002]
[1765722168948,1.31512201,3098.4,3098.3,0.512]
[1765722170642,4.54259425,3098.4,3098.3,0.512]
[1765722175940,0.001,3098.5,3098.3,4.69917033]
[1765722176145,0.001,3098.5,3098.4,0.4939]
[1765722176354,0.001,3098.5,3098.4,0.9731]
[1765722183478,0.001,3098.5,3098.4,0.4939]
[1765722184270,0.001,3098.5,3098.4,0.9731]
[1765722187173,0.001,3098.5,3098.4,4.20057224]
[1765722187344,0.001,3098.5,3098.4,0.9731]
[1765722191176,0.9542,3098.5,3098.4,0.509]
[1765722193470,3.22747224,3098.4,3098.3,0.002]
[1765722193671,4.4822729,3098.4,3098.3,0.511]
[1765722195179,4.4822729,3098.4,3098.3,0.002]
[1765722195384,4.4822729,3098.4,3098.3,0.511]
[1765722196580,4.4822729,3098.4,3098.3,0.002]
[1765722196784,4.4822729,3098.4,3098.3,0.511]
[1765722198383,4.4822729,3098.4,3098.3,0.002]
[1765722198571,4.4822729,3098.4,3098.3,0.511]
[1765722202489,4.4822729,3098.4,3098.3,0.002]
[1765722202666,4.4822729,3098.4,3098.3,0.511]
[1765722210392,4.0007729,3098.4,3098.3,0.511]
[1765722210692,3.9684729,3098.4,3098.3,0.511]
[1765722211194,4.4606729,3098.4,3098.3,0.511]
[1765722211395,4.9382729,3098.4,3098.3,0.511]
[1765722214998,4.9392729,3098.4,3098.3,0.511]
[1765722220299,4.4616729,3098.4,3098.3,0.511]
[1765722220498,4.9392729,3098.4,3098.3,0.511]
[1765722227476,4.4616729,3098.4,3098.3,0.511]
[1765722228205,4.9392729,3098.4,3098.3,0.511]
[1765722235282,4.4616729,3098.4,3098.3,0.511]
[1765722237210,4.9118729,3098.4,3098.3,0.511]
[1765722237523,4.9118729,3098.4,3098.3,0.9628]
[1765722237524,0.001,3098.4,3098.3,0.9628]
[1765722237689,0.001,3098.4,3098.3,1.4585]
[1765722238014,0.001,3098.4,3098.3,0.9628]
[1765722238216,0.001,3098.4,3098.3,1.4585]
[1765722239599,0.001,3098.4,3098.3,0.511]
[1765722240224,0.001,3098.4,3098.3,0.9628]
[1765722244792,0.001,3098.4,3098.3,1.4585]
[1765722245129,0.001,3098.4,3098.3,4.68607641]
[1765722245291,0.001,3098.4,3098.3,4.8152568]
[1765722245488,0.001,3098.4,3098.3,0.9495]
[1765722245694,0.001,3098.4,3098.3,1.4585]
[1765722246556,0.001,3098.4,3098.3,4.68607641]
[1765722247204,0.001,3098.4,3098.3,1.4585]
[1765722249709,0.001,3098.4,3098.3,0.9628]
[1765722255726,0.001,3098.4,3098.3,1.4585]
[1765722256837,0.001,3098.4,3098.3,0.9628]
[1765722259443,0.001,3098.4,3098.3,1.4585]
[1765722262312,0.001,3098.4,3098.3,0.9628]
[1765722264521,0.001,3098.4,3098.3,1.4585]
[1765722265411,0.001,3098.4,3098.3,0.9628]
[1765722270733,0.001,3098.4,3098.3,1.4499]
[1765722272226,0.001,3098.4,3098.3,0.9628]
[1765722274146,0.001,3098.4,3098.3,1.4499]
[1765722275345,0.001,3098.4,3098.3,0.9628]
[1765722276444,0.4797,3098.4,3098.3,0.002]
[1765722276629,0.001,3098.4,3098.3,0.511]
[1765722276831,0.001,3098.4,3098.3,0.972]
[1765722277349,0.001,3098.4,3098.3,4.19957641]
[1765722277522,0.001,3098.4,3098.3,5.2671517]
[1765722278220,0.001,3098.4,3098.3,5.39632959]
[1765722278521,0.001,3098.4,3098.3,5.2671517]
[1765722278719,0.001,3098.4,3098.3,4.2710517]
[1765722278919,0.001,3098.4,3098.3,4.7800517]
[1765722279124,0.001,3098.4,3098.3,5.2671517]
[1765722280046,0.001,3098.4,3098.3,0.463]
[1765722280246,0.4797,3098.4,3098.3,0.511]
[1765722280646,0.608895,3098.4,3098.3,0.511]
[1765722281966,0.608895,3098.4,3098.3,0.002]
[1765722282167,0.608895,3098.4,3098.3,0.511]
[1765722284263,0.608895,3098.4,3098.3,0.002]
[1765722284430,1.083195,3098.4,3098.3,0.511]
[1765722285849,0.608895,3098.4,3098.3,0.511]
[1765722289280,3.83636724,3098.4,3098.3,0.002]
[1765722289462,3.83636724,3098.4,3098.3,0.511]
[1765722289775,0.608895,3098.4,3098.3,0.511]
[1765722292782,1.083195,3098.4,3098.3,0.002]
[1765722292980,1.083195,3098.4,3098.3,0.511]
[1765722293183,0.130195,3098.4,3098.3,0.972]
[1765722293683,0.001,3098.4,3098.3,4.68667641]
[1765722293880,0.001,3098.4,3098.3,0.972]
[1765722294770,0.001,3098.4,3098.3,0.463]
[1765722295084,0.001,3098.4,3098.3,0.972]
[1765722295489,0.4797,3098.4,3098.3,0.463]
[1765722295691,0.954,3098.4,3098.3,0.511]
[1765722295873,0.4797,3098.4,3098.3,0.511]
[1765722296062,0.001,3098.4,3098.3,0.9769]
[1765722298188,0.4736,3098.4,3098.3,0.511]
[1765722298696,0.001,3098.4,3098.3,0.511]
[1765722300198,0.4736,3098.4,3098.3,0.511]
[1765722300692,3.70107224,3098.4,3098.3,0.511]
[1765722300893,3.70107224,3098.4,3098.3,0.002]
[1765722301191,0.4736,3098.4,3098.3,0.511]
[1765722302197,4.19657224,3098.4,3098.3,0.511]
[1765722303395,0.9691,3098.4,3098.3,0.511]
[1765722303701,0.4736,3098.4,3098.3,0.511]
[1765722304070,3.70107224,3098.4,3098.3,0.511]
[1765722305166,0.4736,3098.4,3098.3,0.511]
[1765722306382,0.9691,3098.4,3098.3,0.511]
[1765722307103,0.001,3098.4,3098.3,0.4679]
[1765722307283,0.37512691,3098.4,3098.3,0.9769]
[1765722307470,0.4736,3098.4,3098.3,0.511]
[1765722307780,0.9691,3098.4,3098.3,0.511]
[1765722308172,0.4736,3098.4,3098.3,0.511]
[1765722308796,0.9691,3098.4,3098.3,0.511]
[1765722309296,0.001,3098.4,3098.3,0.511]
[1765722309499,3.22847224,3098.4,3098.3,0.511]
[1765722309899,4.44749632,3098.4,3098.3,0.511]
[1765722310300,5.02997161,3098.4,3098.3,0.511]
[1765722310505,0.58347529,3098.4,3098.3,5.6685557]
[1765722310807,0.001,3098.4,3098.3,0.9789]
[1765722311007,0.001,3098.4,3098.3,1.4879]
[1765722311218,0.4736,3098.4,3098.3,0.002]
[1765722311508,1.09830793,3098.4,3098.3,0.002]
[1765722311813,1.09830793,3098.4,3098.0,0.002]
[1765722311976,0.0287,3098.1,3098.0,0.002]
[1765722312285,0.0287,3098.1,3097.8,0.002]
[1765722312485,0.4661,3097.9,3097.8,0.002]
[1765722312887,4.77006844,3097.9,3097.8,0.002]
[1765722313278,5.58298357,3097.9,3097.8,0.002]
[1765722317782,5.71223325,3097.9,3097.8,0.002]
[1765722324009,5.75258316,3097.9,3097.8,0.002]
[1765722325008,3.35724283,3097.9,3097.8,0.946]
[1765722325180,3.35724283,3097.9,3097.8,0.4679]
[1765722325385,3.22799315,3097.9,3097.8,0.4679]
[1765722325583,3.70059315,3097.9,3097.8,0.002]
[1765722325788,5.25973931,3097.9,3097.8,0.002]
[1765722325985,3.22799315,3097.9,3097.8,0.9582]
[1765722326216,0.12922797,3097.9,3097.8,0.9582]
[1765722326391,0.58047529,3098.2,3097.8,0.9582]
[1765722326820,0.58047529,3098.2,3098.1,0.4754]
[1765722327319,1.06127529,3098.2,3098.1,0.4754]
[1765722327493,0.4808,3098.2,3098.1,0.6605]
[1765722327696,0.4808,3098.2,3098.1,1.1413]
[1765722327899,0.001,3098.4,3098.1,1.1413]
[1765722328106,0.001,3098.4,3098.3,0.880904]
[1765722328423,0.001,3098.4,3098.3,1.361704]
[1765722328727,0.001,3098.5,3098.3,1.94217929]
[1765722329017,0.001,3098.6,3098.5,0.405504]
[1765722329219,0.001,3098.6,3098.5,0.880904]
[1765722329433,0.001,3098.6,3098.5,1.361704]
[1765722330192,0.001,3098.6,3098.5,4.58907208]
[1765722330429,0.001,3098.6,3098.5,35.53364292]
[1765722331098,0.001,3098.6,3098.5,35.91701873]
[1765722331294,0.001,3098.6,3098.5,35.53364292]
[1765722332517,0.001,3098.6,3098.5,45.53364292]
[1765722332695,0.001,3098.6,3098.5,35.53364292]
[1765722334718,0.001,3098.6,3098.5,35.67954737]
[1765722336025,0.001,3098.6,3098.5,39.50054736]
[1765722336718,0.001,3098.6,3098.5,39.62966562]
[1765722340929,0.001,3098.6,3098.5,35.80866563]
[1765722341829,0.001,3098.6,3098.5,39.62966562]
[1765722342018,0.001,3098.6,3098.5,40.41975298]
[1765722342600,0.001,3098.6,3098.5,39.62966562]
[1765722343400,0.001,3098.6,3098.5,40.01304143]
[1765722346627,0.001,3098.6,3098.5,39.62966562]
[1765722347003,0.001,3098.6,3098.5,40.01304143]
[1765722348117,0.001,3098.6,3098.5,40.01504143]
[1765722349514,0.001,3098.6,3098.5,38.71616162]
[1765722349847,0.001,3098.6,3098.5,39.22616162]
[1765722350343,0.001,3098.6,3098.5,3.70476808]
[1765722350549,0.001,3098.6,3098.5,35.10107208]
[1765722350841,0.001,3098.6,3098.5,35.27604337]
[1765722351035,0.001,3098.6,3098.5,33.30654737]
[1765722354644,0.001,3098.6,3098.5,32.82574737]
[1765722354845,0.001,3098.6,3098.5,28.30174737]
[1765722355146,0.001,3098.6,3098.5,28.78254737]
[1765722355615,0.001,3098.6,3098.5,32.12274736]
[1765722355944,0.001,3098.6,3098.5,16.61524337]
[1765722356249,0.001,3098.6,3098.5,9.46077208]
[1765722356449,0.9712,3098.6,3098.5,0.58247529]
[1765722356748,0.9712,3098.6,3098.5,3.73936808]
[1765722356960,0.9712,3098.6,3098.5,4.72534737]
[1765722357247,0.9712,3098.6,3098.5,1.09247529]
[1765722357452,0.9712,3098.6,3098.5,1.49797929]
[1765722358447,0.9712,3098.6,3098.5,1.09247529]
[1765722359651,0.9712,3098.6,3098.5,0.512]
[1765722360149,0.9712,3098.6,3098.5,0.002]
[1765722360450,0.9712,3098.6,3098.5,0.512]
[1765722360451,4.61830755,3098.6,3098.5,0.512]
[1765722361258,4.61830755,3098.6,3098.5,0.002]
[1765722361556,4.56830755,3098.6,3098.5,0.002]
[1765722363755,4.56930755,3098.6,3098.5,0.002]
[1765722366856,5.14978284,3098.6,3098.5,0.002]
[1765722372272,5.19012363,3098.6,3098.5,0.002]
[1765722373166,5.14978284,3098.6,3098.5,0.002]
[1765722375270,5.27902334,3098.6,3098.5,0.002]
[1765722379346,11.76902334,3098.6,3098.5,0.002]
[1765722385788,0.98597929,3098.5,3097.8,0.002]
[1765722385954,0.31278809,3097.9,3097.8,0.002]
[1765722386267,9.09674923,3098.4,3097.8,0.4921]
[1765722386268,0.040346,3098.2,3097.8,0.4921]
[1765722386472,0.3896,3097.9,3097.8,0.002]
[1765722386852,0.8703,3097.9,3097.8,0.002]
[1765722387276,4.09829315,3097.9,3097.8,0.002]
[1765722387454,5.0288111,3097.9,3097.8,0.002]
[1765722391187,4.3502111,3097.9,3097.8,0.002]
[1765722391387,3.22799315,3097.9,3097.8,0.9818]
[1765722391558,3.2278863,3098.1,3097.8,0.4921]
[1765722391884,0.4546,3097.9,3097.8,0.002]
[1765722392787,0.871,3097.9,3097.8,0.002]
[1765722393783,4.09899315,3097.9,3097.8,0.002]
[1765722393994,4.86513477,3097.9,3097.8,0.002]
[1765722397893,4.44873477,3097.9,3097.8,0.002]
[1765722398692,4.86513477,3097.9,3097.8,0.002]
[1765722401399,4.44873477,3097.9,3097.8,0.002]
[1765722402183,3.99413477,3097.9,3097.8,0.4921]
[1765722402599,4.38373477,3097.9,3097.8,0.002]
[1765722403977,5.06233477,3097.9,3097.8,0.002]
[1765722406613,3.99413477,3097.9,3097.8,0.4921]
[1765722406988,3.99413477,3097.9,3097.8,0.9818]
[1765722407310,3.99413477,3097.9,3097.8,0.4921]
[1765722411807,5.11183477,3097.9,3097.8,0.002]
[1765722412514,5.20812286,3097.9,3097.8,0.002]
[1765722412808,4.72652286,3097.9,3097.8,0.002]
[1765722412982,4.63023477,3097.9,3097.8,0.002]
[1765722413184,4.43233477,3097.9,3097.8,0.002]
[1765722414082,5.82854806,3097.9,3097.8,0.002]
[1765722414312,5.78819815,3097.9,3097.8,0.002]
[1765722414810,5.30699815,3097.9,3097.8,0.002]
[1765722415006,5.78819815,3097.9,3097.8,0.002]
[1765722416611,5.82854806,3097.9,3097.8,0.002]
[1765722416913,5.78819815,3097.9,3097.8,0.002]
[1765722418708,5.82854806,3097.9,3097.8,0.002]
[1765722419084,5.82854806,3097.9,3097.8,9.94e-05]
[1765722420924,5.78819815,3097.9,3097.8,9.94e-05]
[1765722426907,5.82854806,3097.9,3097.8,9.94e-05]
[1765722427609,6.23405206,3097.9,3097.8,9.94e-05]
[1765722427912,0.0048,3097.6,3097.3,0.002]
[1765722428108,0.52548809,3097.4,3097.3,0.002]
[1765722428502,1.14068039,3097.4,3097.3,0.002]
[1765722429241,1.14068039,3097.4,3096.3,0.6589]
[1765722429242,0.414604,3097.1,3097.0,0.00030122]
[1765722429407,0.96496433,3097.1,3097.0,0.00030122]
[1765722429606,2.29972199,3097.1,3097.0,0.00030122]
[1765722429933,2.42903895,3097.1,3095.5,0.1897]
[1765722430107,1.028104,3096.9,3095.5,0.1897]
[1765722430308,1.028104,3096.9,3095.7,0.4773]
[1765722430510,1.514004,3096.9,3095.7,0.4773]
[1765722430719,1.55436694,3096.9,3095.7,0.4773]
[1765722431043,2.01295672,3096.9,3095.7,0.4773]
[1765722431339,5.82246749,3096.9,3095.5,0.667]
[1765722431840,0.98597929,3096.8,3095.5,0.1897]
[1765722432164,0.4896,3096.6,3095.5,0.1897]
[1765722432320,0.895104,3096.6,3095.9,0.4773]
[1765722432526,1.57124848,3096.6,3095.5,0.667]
[1765722432938,1.70057631,3096.6,3095.5,0.667]
[1765722433137,1.70057631,3096.6,3095.5,0.1897]
[1765722433138,5.51039991,3096.6,3095.5,0.1897]
[1765722433451,5.606688,3096.6,3095.5,0.667]
[1765722433646,5.606688,3096.6,3095.1,0.4773]
[1765722433647,1.47617929,3096.5,3095.1,0.4773]
[1765722433817,0.52618809,3096.2,3095.6,0.4773]
[1765722434015,1.03718809,3096.2,3095.6,0.4773]
[1765722434337,1.03718809,3096.2,3095.0,0.1875]
[1765722434338,1.03718809,3096.2,3095.8,0.4773]
[1765722434535,1.52308809,3096.2,3095.6,0.4773]
[1765722435212,5.33332889,3096.2,3095.5,0.002]
[1765722437429,5.77920495,3096.2,3095.5,0.002]
[1765722437626,0.58907529,3096.1,3096.0,1e-08]
[1765722437946,1.07497529,3096.1,3096.0,1e-08]
[1765722438338,1.48047929,3096.1,3096.0,1e-08]
[1765722439029,1.52085266,3096.1,3096.0,1e-08]
[1765722439427,4.75072249,3096.1,3096.0,1e-08]
[1765722439628,5.76421959,3096.1,3096.0,1e-08]
[1765722439857,5.95171959,3096.1,3096.0,1e-08]
[1765722441844,6.42234622,3096.1,3096.0,1e-08]
[1765722445379,11.50134222,3096.1,3096.0,0.46410001]
[1765722445540,11.82484222,3096.1,3096.0,0.46410001]
[1765722446061,11.82484222,3096.1,3096.0,0.95280001]
[1765722446062,3.22986983,3096.1,3096.0,0.95280001]
[1765722446374,4.29021849,3096.1,3096.0,1e-08]
[1765722446681,4.77031849,3096.1,3096.0,1e-08]
[1765722447346,5.17582249,3096.1,3096.0,1e-08]
[1765722447548,5.98563673,3096.1,3096.0,1e-08]
[1765722447876,6.0260101,3096.1,3096.0,1e-08]
[1765722448954,6.7022101,3096.1,3096.0,1e-08]
[1765722449308,6.66183673,3096.1,3096.0,1e-08]
[1765722449780,6.66283673,3096.1,3096.0,1e-08]
[1765722450184,0.405504,3095.9,3095.5,0.002]
[1765722450486,0.69329209,3095.6,3095.5,0.002]
[1765722450642,0.87676784,3095.6,3095.5,0.002]
[1765722450842,5.18143465,3095.6,3095.5,0.002]
[1765722451277,5.22181454,3095.6,3095.5,0.002]
[1765722451479,5.18143465,3095.6,3095.5,0.002]
[1765722453790,5.65643465,3095.6,3095.5,0.002]
[1765722455171,12.14643465,3095.6,3095.5,0.00010263]
[1765722455377,0.98597929,3095.5,3094.7,0.002]
[1765722455578,0.09628809,3094.8,3094.7,0.002]
[1765722455775,0.64767842,3094.8,3094.7,0.002]
[1765722455995,0.60728809,3094.8,3094.7,0.002]
[1765722456814,1.03688809,3094.8,3094.7,0.002]
[1765722457089,1.52808809,3094.8,3094.7,0.002]
[1765722457286,1.75669571,3094.8,3094.7,0.002]
[1765722457491,5.39342628,3094.8,3094.7,0.002]
[1765722457694,5.97390157,3094.8,3094.7,0.002]
[1765722458904,0.0049,3094.4,3094.3,1e-08]
[1765722459058,0.921404,3094.4,3094.3,1e-08]
[1765722459261,1.415204,3094.4,3094.3,1e-08]
[1765722459461,1.54462221,3094.4,3094.3,1e-08]
[1765722459662,5.52487221,3094.4,3094.3,1e-08]
[1765722460192,1.90257929,3094.3,3094.2,0.00012724]
[1765722460383,2.03926423,3094.3,3094.2,0.00012724]
[1765722461202,2.01606738,3094.3,3093.5,0.477]
[1765722461398,0.09628809,3093.6,3093.5,0.477]
[1765722461571,3.23247995,3093.6,3093.5,0.477]
[1765722461897,3.81295524,3093.6,3093.5,0.9589]
[1765722462485,3.81295524,3093.6,3093.5,0.4839]
[1765722462686,4.32395524,3093.6,3093.5,0.002]
[1765722462869,5.08921654,3093.6,3093.5,0.002]
[1765722463599,5.52791654,3093.6,3093.5,0.002]
[1765722463904,6.02121654,3093.6,3093.5,0.002]
[1765722464788,5.52791654,3093.6,3093.5,0.002]
[1765722465104,5.08921654,3093.6,3093.5,0.4839]
[1765722465666,3.81295524,3093.6,3093.5,0.9589]
[1765722465871,3.23247995,3093.6,3093.5,0.9589]
[1765722467793,0.09628809,3093.7,3093.5,0.9589]
[1765722467995,0.09628809,3093.7,3093.6,0.475]
[1765722467996,0.67676338,3093.7,3093.6,0.475]
[1765722468211,0.67676338,3093.7,3093.6,0.9569]
[1765722469741,0.09628809,3094.3,3093.6,0.9569]
[1765722470038,0.67676338,3094.3,3094.2,0.6739]
[1765722470322,0.67676338,3094.3,3093.7,0.475]
[1765722470323,1.45159738,3094.3,3093.7,0.475]
[1765722470494,0.09628809,3093.8,3093.7,0.475]
[1765722471118,0.09628809,3093.8,3093.7,0.9569]
[1765722472105,3.90903437,3093.8,3093.7,0.9569]
[1765722474693,3.81274628,3093.8,3093.7,0.9569]
[1765722475090,0.58047529,3093.7,3093.5,0.002]
[1765722475521,0.58047529,3093.7,3093.6,0.4819]
[1765722475825,0.58047529,3093.7,3093.6,0.9569]
[1765722476326,3.81285076,3093.7,3093.6,0.9569]
[1765722476696,3.90913885,3093.7,3093.6,0.4819]
[1765722477024,3.90913885,3093.7,3093.6,0.9696]
[1765722479220,3.90913885,3093.7,3093.6,0.4819]
[1765722479707,3.90913885,3093.7,3093.6,0.9696]
[1765722480826,3.90913885,3093.7,3093.6,0.4819]
[1765722481034,3.90913885,3093.7,3093.6,0.9696]
[1765722481217,3.23195759,3094.1,3093.6,0.9696]
[1765722481397,3.23195759,3094.1,3093.7,0.4877]
[1765722481398,6.46391518,3094.1,3093.7,0.4877]
[1765722481592,0.04040077,3094.0,3093.7,0.4877]
[1765722481926,0.58147529,3094.2,3093.7,0.4877]
[1765722482239,0.58147529,3094.2,3093.5,0.002]
[1765722482240,0.09628809,3093.9,3093.5,0.002]
[1765722482430,0.09628809,3093.9,3093.7,0.4877]
[1765722482631,0.09628809,3093.9,3093.8,0.456]
[1765722482835,0.09628809,3093.9,3093.5,0.002]
[1765722483146,0.61809017,3093.9,3093.5,0.002]
[1765722483316,0.09628809,3093.7,3093.5,0.002]
[1765722483517,3.23247995,3093.6,3093.5,0.002]
[1765722483932,3.23247995,3093.6,3093.5,0.458]
[1765722485237,3.68287995,3093.6,3093.5,0.002]
[1765722485542,5.05611527,3093.6,3093.5,0.002]
[1765722485740,5.05611527,3093.6,3093.0,0.002]
[1765722485741,0.58047529,3093.5,3093.0,0.002]
[1765722485941,0.09628809,3093.1,3093.0,0.002]
[1765722487145,0.09628809,3093.1,3093.0,0.458]
[1765722487832,3.90976586,3093.1,3093.0,0.458]
[1765722488146,3.90976586,3093.1,3093.0,0.002]
[1765722488147,5.13556056,3093.1,3093.0,0.002]
[1765722489519,4.68486056,3093.1,3093.0,0.458]
[1765722489720,4.68486056,3093.1,3093.0,0.9457]
[1765722489939,5.19686056,3093.1,3093.0,0.9457]
[1765722490133,5.10057247,3093.1,3093.0,0.458]
[1765722491445,5.10057247,3093.1,3093.0,0.9457]